[Event "January 2 Late 2024"]
[Site "https://www.chess.com"]
[Date "2024.01.02"]
[Round "2"]
[White "Harsha Bharathakoti"]
[Black "Andrews, Todd"]
[Result "1-0"]
[Board "43"]
[TimeControl "180+1"]
[WhiteFideId "5078776"]
[BlackFideId "2012456"]
[WhiteElo "2915"]
[BlackElo "2588"]
[WhiteTeam "IND"]
[BlackTeam "USA"]
[WhiteClock "0:00:33"]
[BlackClock "0:00:15"]

1. e4 {[%clk 0:03:00]}  e6 {[%clk 0:03:00]} 2. d4 {[%clk 0:02:55]}  d5 {[%clk 0:03:00]} 3. Nc3 {[%clk 0:02:56]}  Bb4 {[%clk 0:02:59]} 4. e5 {[%clk 0:02:50]}  c5 {[%clk 0:02:59]} 5. a3 {[%clk 0:02:51]}  Bxc3+ {[%clk 0:02:59]} 6. bxc3 {[%clk 0:02:52]}  Ne7 {[%clk 0:02:59]} 7. h4 {[%clk 0:02:53]}  Qc7 {[%clk 0:02:59]} 8. h5 {[%clk 0:02:51]}  h6 {[%clk 0:02:59]} 9. Nf3 {[%clk 0:02:50]}  Bd7 {[%clk 0:02:57]} 10. a4 {[%clk 0:02:49]}  Nbc6 {[%clk 0:02:55]} 11. Ba3 {[%clk 0:02:40]}  c4 {[%clk 0:02:47]} 12. Be2 {[%clk 0:02:34]}  O-O {[%clk 0:02:37]} 13. Qd2 {[%clk 0:02:32]}  f6 {[%clk 0:02:30]} 14. Bd6 {[%clk 0:01:48]}  Qa5 {[%clk 0:02:26]} 15. g4 {[%clk 0:01:44]}  fxe5 {[%clk 0:02:25]} 16. Nxe5 {[%clk 0:01:28]}  Nxe5 {[%clk 0:02:15]} 17. dxe5 {[%clk 0:01:28]}  Rf7 {[%clk 0:02:08]} 18. f4 {[%clk 0:01:26]}  Raf8 {[%clk 0:01:38]} 19. O-O {[%clk 0:01:20]}  Qb6+ {[%clk 0:01:26]} 20. Qd4 {[%clk 0:01:20]}  Qxd4+ {[%clk 0:01:22]} 21. cxd4 {[%clk 0:01:21]}  Re8 {[%clk 0:01:13]} 22. c3 {[%clk 0:01:19]}  Nc8 {[%clk 0:01:12]} 23. Bb4 {[%clk 0:01:18]}  Nb6 {[%clk 0:01:05]} 24. a5 {[%clk 0:01:17]}  Na4 {[%clk 0:01:06]} 25. Ra2 {[%clk 0:01:15]}  b5 {[%clk 0:01:02]} 26. axb6 {[%clk 0:01:11]}  axb6 {[%clk 0:01:03]} 27. Bd1 {[%clk 0:01:12]}  b5 {[%clk 0:01:01]} 28. Bc2 {[%clk 0:01:12]}  Ra8 {[%clk 0:00:53]} 29. Bg6 {[%clk 0:01:11]}  Rff8 {[%clk 0:00:45]} 30. Bxf8 {[%clk 0:01:03]}  Kxf8 {[%clk 0:00:45]} 31. Ra3 {[%clk 0:01:03]}  Rb8 {[%clk 0:00:44]} 32. Rb1 {[%clk 0:01:02]}  Ke7 {[%clk 0:00:41]} 33. Kf2 {[%clk 0:00:58]}  Rf8 {[%clk 0:00:40]} 34. Ke3 {[%clk 0:00:58]}  Bc6 {[%clk 0:00:38]} 35. Bc2 {[%clk 0:00:58]}  Ra8 {[%clk 0:00:32]} 36. f5 {[%clk 0:00:46]}  Kd7 {[%clk 0:00:32]} 37. Kf4 {[%clk 0:00:37]}  Rf8 {[%clk 0:00:30]} 38. Bxa4 {[%clk 0:00:36]}  bxa4 {[%clk 0:00:30]} 39. Rb6 {[%clk 0:00:32]}  Kc7 {[%clk 0:00:30]} 40. Rxc6+ {[%clk 0:00:32]}  Kxc6 {[%clk 0:00:30]} 41. Rxa4 {[%clk 0:00:33]}  exf5 {[%clk 0:00:24]} 42. gxf5 {[%clk 0:00:33]}  Rb8 {[%clk 0:00:24]} 43. Ra6+ {[%clk 0:00:32]}  Kb5 {[%clk 0:00:18]} 44. Ra7 {[%clk 0:00:30]}  Rg8 {[%clk 0:00:18]} 45. e6 {[%clk 0:00:30]}  Kb6 {[%clk 0:00:18]} 46. Rf7 {[%clk 0:00:27]}  Kc6 {[%clk 0:00:18]} 47. Ke5 {[%clk 0:00:28]}  Ra8 {[%clk 0:00:17]} 48. Rxg7 {[%clk 0:00:28]}  Ra1 {[%clk 0:00:17]} 49. e7 {[%clk 0:00:29]}  Re1+ {[%clk 0:00:16]} 50. Kf6 {[%clk 0:00:30]}  Kd7 {[%clk 0:00:17]} 51. Rg8 {[%clk 0:00:28]}  Rxe7 {[%clk 0:00:16]} 52. Rg7 {[%clk 0:00:29]}  Rxg7 {[%clk 0:00:16]} 53. Kxg7 {[%clk 0:00:29]}  Kd6 {[%clk 0:00:14]} 54. f6 {[%clk 0:00:30]}  Ke6 {[%clk 0:00:14]} 55. f7 {[%clk 0:00:31]}  Kf5 {[%clk 0:00:15]} 56. f8=Q+ {[%clk 0:00:32]}  Ke4 {[%clk 0:00:16]} 57. Qf7 {[%clk 0:00:30]}  Kd3 {[%clk 0:00:16]} 58. Qxd5 {[%clk 0:00:30]}  Kxc3 {[%clk 0:00:17]} 59. Qc5 {[%clk 0:00:30]}  Kd3 {[%clk 0:00:15]} 60. d5 {[%clk 0:00:31]}  c3 {[%clk 0:00:15]} 61. d6 {[%clk 0:00:32]}  c2 {[%clk 0:00:16]} 62. d7 {[%clk 0:00:32]}  Ke4 {[%clk 0:00:15]} 63. d8=Q {[%clk 0:00:33]}  Kf3 {[%clk 0:00:15]} 64. Qf5+ {[%clk 0:00:33]}  Kg3 {[%clk 0:00:15]} 65. Qdd3+ {[%clk 0:00:34]}  Kh4 {[%clk 0:00:15]} 66. Qdh3# {[%clk 0:00:33]} 1-0

[Event "January 2 Late 2024"]
[Site "https://www.chess.com"]
[Date "2024.01.02"]
[Round "2"]
[White "Avramidou, Anastasia"]
[Black "Liascovich, Lucas"]
[Result "0-1"]
[Board "44"]
[TimeControl "180+1"]
[WhiteFideId "4239873"]
[BlackFideId "108634"]
[WhiteElo "2587"]
[BlackElo "2910"]
[WhiteTeam "GRE"]
[BlackTeam "ARG"]
[WhiteClock "0:00:03"]
[BlackClock "0:00:18"]

1. Nf3 {[%clk 0:03:00]}  Nf6 {[%clk 0:02:58]} 2. d4 {[%clk 0:03:01]}  g6 {[%clk 0:02:58]} 3. c4 {[%clk 0:03:01]}  Bg7 {[%clk 0:02:57]} 4. Nc3 {[%clk 0:03:02]}  d5 {[%clk 0:02:57]} 5. h4 {[%clk 0:03:02]}  c6 {[%clk 0:02:55]} 6. Bf4 {[%clk 0:03:01]}  O-O {[%clk 0:02:52]} 7. e3 {[%clk 0:03:01]}  Bg4 {[%clk 0:02:49]} 8. Qb3 {[%clk 0:03:01]}  Qb6 {[%clk 0:02:46]} 9. Ne5 {[%clk 0:02:57]}  Be6 {[%clk 0:02:46]} 10. c5 {[%clk 0:02:51]}  Qxb3 {[%clk 0:02:44]} 11. axb3 {[%clk 0:02:52]}  Nfd7 {[%clk 0:02:44]} 12. Nxd7 {[%clk 0:01:57]}  Nxd7 {[%clk 0:02:45]} 13. f3 {[%clk 0:01:57]}  b6 {[%clk 0:02:36]} 14. b4 {[%clk 0:01:57]}  a5 {[%clk 0:02:37]} 15. b5 {[%clk 0:01:51]}  bxc5 {[%clk 0:02:32]} 16. bxc6 {[%clk 0:01:51]}  cxd4 {[%clk 0:02:31]} 17. Nb5 {[%clk 0:01:40]}  Nc5 {[%clk 0:02:10]} 18. exd4 {[%clk 0:01:33]}  Nb3 {[%clk 0:02:06]} 19. Ra4 {[%clk 0:01:27]}  Rfc8 {[%clk 0:01:56]} 20. c7 {[%clk 0:00:58]}  Bd7 {[%clk 0:01:54]} 21. Bd3 {[%clk 0:00:45]}  Bxb5 {[%clk 0:01:53]} 22. Bxb5 {[%clk 0:00:45]}  Ra7 {[%clk 0:01:34]} 23. O-O {[%clk 0:00:26]}  Bxd4+ {[%clk 0:01:32]} 24. Kh2 {[%clk 0:00:21]}  e5 {[%clk 0:01:32]} 25. Bh6 {[%clk 0:00:20]}  Raxc7 {[%clk 0:01:30]} 26. Ra3 {[%clk 0:00:18]}  Nc5 {[%clk 0:01:16]} 27. Rxa5 {[%clk 0:00:19]}  Bxb2 {[%clk 0:01:16]} 28. Rb1 {[%clk 0:00:17]}  Bd4 {[%clk 0:01:13]} 29. Be2 {[%clk 0:00:13]}  e4 {[%clk 0:01:04]} 30. Bf4 {[%clk 0:00:13]}  Rd7 {[%clk 0:00:58]} 31. Rc1 {[%clk 0:00:13]}  Rdd8 {[%clk 0:00:49]} 32. Rb5 {[%clk 0:00:07]}  Ne6 {[%clk 0:00:47]} 33. Rxc8 {[%clk 0:00:04]}  Rxc8 {[%clk 0:00:48]} 34. Bg3 {[%clk 0:00:04]}  Rd8 {[%clk 0:00:44]} 35. Rb7 {[%clk 0:00:03]}  Bg7 {[%clk 0:00:23]} 36. Rb5 {[%clk 0:00:03]}  d4 {[%clk 0:00:20]} 37. fxe4 {[%clk 0:00:02]}  d3 {[%clk 0:00:20]} 38. Bd1 {[%clk 0:00:02]}  h5 {[%clk 0:00:20]} 39. Rb7 {[%clk 0:00:02]}  Nc5 {[%clk 0:00:20]} 40. Rb5 {[%clk 0:00:02]}  Nxe4 {[%clk 0:00:20]} 41. Ra5 {[%clk 0:00:01]}  Nc3 {[%clk 0:00:17]} 42. Bb3 {[%clk 0:00:01]}  d2 {[%clk 0:00:18]} 43. Ra7 {[%clk 0:00:02]}  d1=Q {[%clk 0:00:18]} 44. Bxd1 {[%clk 0:00:02]}  Nxd1 {[%clk 0:00:19]} 45. Bc7 {[%clk 0:00:03]}  Re8 {[%clk 0:00:18]} 46. Bf4 {[%clk 0:00:02]}  Ne3 {[%clk 0:00:18]} 47. g3 {[%clk 0:00:03]}  Ng4+ {[%clk 0:00:18]} 48. Kg2 {[%clk 0:00:03]}  Nf6 {[%clk 0:00:18]} 49. Kf3 {[%clk 0:00:03]}  Nd5 {[%clk 0:00:18]} 50. Bd6 {[%clk 0:00:03]}  Bf8 {[%clk 0:00:17]} 51. Bxf8 {[%clk 0:00:02]}  Rxf8 {[%clk 0:00:17]} 52. Rd7 {[%clk 0:00:02]}  Nf6 {[%clk 0:00:17]} 53. Rb7 {[%clk 0:00:03]}  Ng4 {[%clk 0:00:18]} 54. Kf4 {[%clk 0:00:03]}  Kg7 {[%clk 0:00:18]} 55. Ra7 {[%clk 0:00:04]}  Re8 {[%clk 0:00:19]} 56. Kf3 {[%clk 0:00:04]}  Re6 {[%clk 0:00:19]} 57. Rb7 {[%clk 0:00:05]}  Rf6+ {[%clk 0:00:20]} 58. Kg2 {[%clk 0:00:05]}  Rf2+ {[%clk 0:00:21]} 59. Kg1 {[%clk 0:00:06]}  Ra2 {[%clk 0:00:21]} 60. Rb3 {[%clk 0:00:06]}  Ne5 {[%clk 0:00:21]} 61. Re3 {[%clk 0:00:06]}  f6 {[%clk 0:00:21]} 62. Rc3 {[%clk 0:00:06]}  g5 {[%clk 0:00:21]} 63. hxg5 {[%clk 0:00:07]}  fxg5 {[%clk 0:00:22]} 64. Kh1 {[%clk 0:00:07]}  Kf6 {[%clk 0:00:22]} 65. Kg1 {[%clk 0:00:07]}  Kf5 {[%clk 0:00:22]} 66. Kf1 {[%clk 0:00:07]}  Kg4 {[%clk 0:00:22]} 67. Kg1 {[%clk 0:00:06]}  Kh3 {[%clk 0:00:20]} 68. g4+ {[%clk 0:00:06]}  Kxg4 {[%clk 0:00:20]} 69. Kh1 {[%clk 0:00:06]}  h4 {[%clk 0:00:20]} 70. Kg1 {[%clk 0:00:07]}  h3 {[%clk 0:00:20]} 71. Kh1 {[%clk 0:00:07]}  Re2 {[%clk 0:00:20]} 72. Ra3 {[%clk 0:00:07]}  Kh4 {[%clk 0:00:18]} 73. Rc3 {[%clk 0:00:05]}  Ng4 {[%clk 0:00:19]} 74. Rc1 {[%clk 0:00:04]}  Rh2+ {[%clk 0:00:18]} 75. Kg1 {[%clk 0:00:05]}  Rg2+ {[%clk 0:00:19]} 76. Kf1 {[%clk 0:00:05]}  Ne3+ {[%clk 0:00:19]} 77. Ke1 {[%clk 0:00:03]}  h2 {[%clk 0:00:18]} 0-1

[Event "January 2 Late 2024"]
[Site "https://www.chess.com"]
[Date "2024.01.02"]
[Round "2"]
[White "Aggelis, Nikolaos"]
[Black "Livaic, Leon"]
[Result "0-1"]
[Board "47"]
[TimeControl "180+1"]
[WhiteFideId "4213220"]
[BlackFideId "14531534"]
[WhiteElo "2579"]
[BlackElo "2893"]
[WhiteTeam "GRE"]
[BlackTeam "CRO"]
[WhiteClock "0:00:00"]
[BlackClock "0:00:41"]

1. c4 {[%clk 0:02:47]}  Nf6 {[%clk 0:02:58]} 2. g3 {[%clk 0:02:46]}  g6 {[%clk 0:02:59]} 3. Bg2 {[%clk 0:02:46]}  Bg7 {[%clk 0:03:00]} 4. Nf3 {[%clk 0:02:47]}  O-O {[%clk 0:03:00]} 5. O-O {[%clk 0:02:47]}  d6 {[%clk 0:03:01]} 6. b3 {[%clk 0:02:44]}  e5 {[%clk 0:02:58]} 7. Bb2 {[%clk 0:02:40]}  Re8 {[%clk 0:02:55]} 8. d3 {[%clk 0:02:37]}  Nc6 {[%clk 0:02:54]} 9. Nbd2 {[%clk 0:02:17]}  h6 {[%clk 0:02:53]} 10. a3 {[%clk 0:02:17]}  a5 {[%clk 0:02:51]} 11. Qc2 {[%clk 0:02:13]}  Be6 {[%clk 0:02:48]} 12. Rfe1 {[%clk 0:02:03]}  Qd7 {[%clk 0:02:48]} 13. Rad1 {[%clk 0:01:56]}  Bh3 {[%clk 0:02:47]} 14. Ne4 {[%clk 0:01:44]}  Nxe4 {[%clk 0:02:28]} 15. dxe4 {[%clk 0:01:42]}  b6 {[%clk 0:02:26]} 16. Rd3 {[%clk 0:01:21]}  Bxg2 {[%clk 0:02:22]} 17. Kxg2 {[%clk 0:01:20]}  f5 {[%clk 0:02:23]} 18. Nh4 {[%clk 0:01:07]}  fxe4 {[%clk 0:02:16]} 19. Re3 {[%clk 0:01:04]}  g5 {[%clk 0:02:14]} 20. Ng6 {[%clk 0:01:00]}  Qf5 {[%clk 0:02:07]} 21. Qxe4 {[%clk 0:00:55]}  Qxe4+ {[%clk 0:02:07]} 22. Rxe4 {[%clk 0:00:56]}  Kh7 {[%clk 0:02:03]} 23. Nh4 {[%clk 0:00:31]}  gxh4 {[%clk 0:02:04]} 24. Rxh4 {[%clk 0:00:32]}  Nd4 {[%clk 0:01:55]} 25. Bxd4 {[%clk 0:00:22]}  exd4 {[%clk 0:01:56]} 26. Kf1 {[%clk 0:00:20]}  Rab8 {[%clk 0:01:41]} 27. a4 {[%clk 0:00:19]}  Rbd8 {[%clk 0:01:34]} 28. Rh5 {[%clk 0:00:18]}  Re5 {[%clk 0:01:31]} 29. Rh4 {[%clk 0:00:18]}  c5 {[%clk 0:01:30]} 30. Rd1 {[%clk 0:00:16]}  d5 {[%clk 0:01:29]} 31. f4 {[%clk 0:00:10]}  Re3 {[%clk 0:01:27]} 32. Rd3 {[%clk 0:00:08]}  dxc4 {[%clk 0:01:24]} 33. bxc4 {[%clk 0:00:09]}  Rxd3 {[%clk 0:01:11]} 34. exd3 {[%clk 0:00:09]}  Re8 {[%clk 0:01:12]} 35. Rh5 {[%clk 0:00:08]}  Re3 {[%clk 0:01:11]} 36. Rd5 {[%clk 0:00:07]}  Rxd3 {[%clk 0:01:11]} 37. Rd6 {[%clk 0:00:08]}  Rc3 {[%clk 0:01:10]} 38. f5 {[%clk 0:00:08]}  Rf3+ {[%clk 0:01:10]} 39. Ke2 {[%clk 0:00:08]}  Rxf5 {[%clk 0:01:10]} 40. Rxb6 {[%clk 0:00:09]}  Re5+ {[%clk 0:01:11]} 41. Kd2 {[%clk 0:00:08]}  Re3 {[%clk 0:01:04]} 42. Rb5 {[%clk 0:00:09]}  Bf8 {[%clk 0:01:04]} 43. Rxa5 {[%clk 0:00:09]}  Rc3 {[%clk 0:01:04]} 44. Ra8 {[%clk 0:00:09]}  Kg7 {[%clk 0:01:03]} 45. a5 {[%clk 0:00:09]}  Rxc4 {[%clk 0:01:04]} 46. a6 {[%clk 0:00:09]}  Ra4 {[%clk 0:01:05]} 47. Kd3 {[%clk 0:00:09]}  Be7 {[%clk 0:00:58]} 48. h4 {[%clk 0:00:08]}  h5 {[%clk 0:00:57]} 49. Ke4 {[%clk 0:00:08]}  Kf7 {[%clk 0:00:55]} 50. a7 {[%clk 0:00:04]}  Ke6 {[%clk 0:00:54]} 51. Rh8 {[%clk 0:00:01]}  Rxa7 {[%clk 0:00:53]} 52. Rxh5 {[%clk 0:00:02]}  Ra3 {[%clk 0:00:52]} 53. Rh6+ {[%clk 0:00:02]}  Bf6 {[%clk 0:00:51]} 54. g4 {[%clk 0:00:02]}  Re3+ {[%clk 0:00:50]} 55. Kf4 {[%clk 0:00:03]}  Kf7 {[%clk 0:00:45]} 56. g5 {[%clk 0:00:03]}  Be5+ {[%clk 0:00:42]} 57. Kf5 {[%clk 0:00:03]}  d3 {[%clk 0:00:42]} 58. Rh7+ {[%clk 0:00:00]}  Ke8 {[%clk 0:00:41]} 0-1

[Event "January 2 Late 2024"]
[Site "https://www.chess.com"]
[Date "2024.01.02"]
[Round "2"]
[White "Rustemov, Alexander"]
[Black "AmanteDeMoi"]
[Result "1-0"]
[Board "48"]
[TimeControl "180+1"]
[WhiteFideId "4119002"]
[WhiteElo "2870"]
[BlackElo "2576"]
[WhiteTeam "RUS"]
[WhiteClock "0:00:20"]
[BlackClock "0:00:00"]

1. d4 {[%clk 0:03:00]}  g6 {[%clk 0:03:00]} 2. c4 {[%clk 0:03:00]}  Bg7 {[%clk 0:03:00]} 3. Nf3 {[%clk 0:03:01]}  d6 {[%clk 0:03:01]} 4. g3 {[%clk 0:03:00]}  e5 {[%clk 0:03:01]} 5. Nc3 {[%clk 0:02:56]}  Nc6 {[%clk 0:03:00]} 6. dxe5 {[%clk 0:02:55]}  Nxe5 {[%clk 0:02:57]} 7. Bg2 {[%clk 0:02:49]}  Nxf3+ {[%clk 0:02:53]} 8. Bxf3 {[%clk 0:02:48]}  Ne7 {[%clk 0:02:48]} 9. O-O {[%clk 0:02:44]}  O-O {[%clk 0:02:48]} 10. Bg2 {[%clk 0:02:31]}  Re8 {[%clk 0:02:38]} 11. Qc2 {[%clk 0:02:21]}  Nf5 {[%clk 0:02:36]} 12. e3 {[%clk 0:02:19]}  h5 {[%clk 0:02:34]} 13. b3 {[%clk 0:02:19]}  h4 {[%clk 0:02:29]} 14. Bb2 {[%clk 0:02:18]}  h3 {[%clk 0:02:28]} 15. Bh1 {[%clk 0:02:16]}  Be5 {[%clk 0:02:10]} 16. Nd5 {[%clk 0:02:10]}  c6 {[%clk 0:02:07]} 17. Nf4 {[%clk 0:02:10]}  Qf6 {[%clk 0:02:04]} 18. Bxe5 {[%clk 0:02:05]}  dxe5 {[%clk 0:02:03]} 19. Nxh3 {[%clk 0:02:05]}  Nh4 {[%clk 0:01:50]} 20. Bg2 {[%clk 0:01:53]}  Bf5 {[%clk 0:01:04]} 21. Qe2 {[%clk 0:01:50]}  Nxg2 {[%clk 0:00:56]} 22. Kxg2 {[%clk 0:01:50]}  Rad8 {[%clk 0:00:53]} 23. Rad1 {[%clk 0:01:49]}  g5 {[%clk 0:00:26]} 24. Ng1 {[%clk 0:01:39]}  Qg6 {[%clk 0:00:18]} 25. Rxd8 {[%clk 0:01:32]}  Rxd8 {[%clk 0:00:18]} 26. Rd1 {[%clk 0:01:33]}  Bd3 {[%clk 0:00:15]} 27. Qe1 {[%clk 0:01:31]}  g4 {[%clk 0:00:13]} 28. f3 {[%clk 0:01:29]}  f5 {[%clk 0:00:04]} 29. h3 {[%clk 0:01:20]}  e4 {[%clk 0:00:04]} 30. f4 {[%clk 0:01:03]}  b6 {[%clk 0:00:04]} 31. Rd2 {[%clk 0:01:01]}  c5 {[%clk 0:00:04]} 32. Qd1 {[%clk 0:01:00]}  gxh3+ {[%clk 0:00:02]} 33. Nxh3 {[%clk 0:01:00]}  Rd7 {[%clk 0:00:03]} 34. Ng5 {[%clk 0:00:54]}  Qd6 {[%clk 0:00:03]} 35. Kf2 {[%clk 0:00:46]}  Qh6 {[%clk 0:00:03]} 36. Qg1 {[%clk 0:00:44]}  Qh5 {[%clk 0:00:03]} 37. g4 {[%clk 0:00:44]}  Qxg4 {[%clk 0:00:03]} 38. Qxg4 {[%clk 0:00:44]}  fxg4 {[%clk 0:00:04]} 39. Kg3 {[%clk 0:00:44]}  Kg7 {[%clk 0:00:04]} 40. Nxe4 {[%clk 0:00:38]}  Kg6 {[%clk 0:00:05]} 41. Nf2 {[%clk 0:00:37]}  Bf5 {[%clk 0:00:05]} 42. Rxd7 {[%clk 0:00:35]}  Bxd7 {[%clk 0:00:06]} 43. e4 {[%clk 0:00:35]}  Kh5 {[%clk 0:00:04]} 44. f5 {[%clk 0:00:24]}  Bc6 {[%clk 0:00:04]} 45. Nxg4 {[%clk 0:00:23]}  Kg5 {[%clk 0:00:04]} 46. Nf2 {[%clk 0:00:22]}  a5 {[%clk 0:00:02]} 47. a4 {[%clk 0:00:20]}  Be8 {[%clk 0:00:01]} 48. Kf3 {[%clk 0:00:20]}  Bh5+ {[%clk 0:00:00]} 49. Ke3 {[%clk 0:00:20]} 1-0

[Event "January 2 Late 2024"]
[Site "https://www.chess.com"]
[Date "2024.01.02"]
[Round "2"]
[White "Banerjee, Supratit"]
[Black "Szpar, Milosz"]
[Result "0-1"]
[Board "51"]
[TimeControl "180+1"]
[WhiteFideId "2410079"]
[BlackFideId "1184989"]
[WhiteElo "2570"]
[BlackElo "2863"]
[WhiteTeam "SCO"]
[BlackTeam "POL"]
[WhiteClock "0:00:18"]
[BlackClock "0:00:57"]

1. e4 {[%clk 0:03:00]}  e6 {[%clk 0:02:59]} 2. d4 {[%clk 0:03:00]}  d5 {[%clk 0:03:00]} 3. exd5 {[%clk 0:03:01]}  exd5 {[%clk 0:03:00]} 4. Bd3 {[%clk 0:03:00]}  c5 {[%clk 0:02:59]} 5. c3 {[%clk 0:02:59]}  Nc6 {[%clk 0:02:58]} 6. Nf3 {[%clk 0:02:57]}  Nf6 {[%clk 0:02:55]} 7. O-O {[%clk 0:02:57]}  Be7 {[%clk 0:02:49]} 8. dxc5 {[%clk 0:02:57]}  Bxc5 {[%clk 0:02:49]} 9. Bg5 {[%clk 0:02:57]}  O-O {[%clk 0:02:46]} 10. Nbd2 {[%clk 0:02:56]}  h6 {[%clk 0:02:46]} 11. Bh4 {[%clk 0:02:56]}  Bb6 {[%clk 0:02:40]} 12. Rc1 {[%clk 0:02:53]}  Be6 {[%clk 0:02:31]} 13. Re1 {[%clk 0:02:47]}  Re8 {[%clk 0:02:28]} 14. Nb3 {[%clk 0:02:46]}  g5 {[%clk 0:02:16]} 15. Bg3 {[%clk 0:02:42]}  Nh5 {[%clk 0:02:14]} 16. Nfd4 {[%clk 0:02:33]}  Nxg3 {[%clk 0:02:14]} 17. hxg3 {[%clk 0:02:32]}  Qf6 {[%clk 0:02:14]} 18. Re3 {[%clk 0:02:28]}  Ne5 {[%clk 0:02:08]} 19. Be2 {[%clk 0:02:22]}  Bd7 {[%clk 0:02:03]} 20. Qf1 {[%clk 0:01:43]}  Re7 {[%clk 0:02:01]} 21. Re1 {[%clk 0:01:42]}  Rae8 {[%clk 0:02:01]} 22. Bb5 {[%clk 0:01:36]}  Bc6 {[%clk 0:01:51]} 23. a4 {[%clk 0:01:29]}  a6 {[%clk 0:01:51]} 24. Bxc6 {[%clk 0:01:13]}  bxc6 {[%clk 0:01:51]} 25. a5 {[%clk 0:01:09]}  Ba7 {[%clk 0:01:52]} 26. f4 {[%clk 0:01:00]}  Ng4 {[%clk 0:01:37]} 27. Rxe7 {[%clk 0:00:56]}  Rxe7 {[%clk 0:01:38]} 28. Rxe7 {[%clk 0:00:54]}  Qxe7 {[%clk 0:01:39]} 29. Kh1 {[%clk 0:00:53]}  gxf4 {[%clk 0:01:36]} 30. Nxc6 {[%clk 0:00:50]}  Qg5 {[%clk 0:01:21]} 31. Ne7+ {[%clk 0:00:25]}  Qxe7 {[%clk 0:01:18]} 32. Nd4 {[%clk 0:00:23]}  Bxd4 {[%clk 0:01:17]} 33. cxd4 {[%clk 0:00:22]}  fxg3 {[%clk 0:01:17]} 34. Kg1 {[%clk 0:00:21]}  Qe3+ {[%clk 0:01:12]} 35. Kh1 {[%clk 0:00:20]}  Qxd4 {[%clk 0:00:58]} 36. b4 {[%clk 0:00:19]}  Nf2+ {[%clk 0:00:56]} 37. Kg1 {[%clk 0:00:19]}  Nd3+ {[%clk 0:00:56]} 38. Kh1 {[%clk 0:00:17]}  Qh4+ {[%clk 0:00:56]} 39. Kg1 {[%clk 0:00:18]}  Qh2# {[%clk 0:00:57]} 0-1